Workbook

Sheet Summary
B1: The Domino Effect Multi-Commodity Production Economics Model
B3: Permian - Wolfcamp
B6: Drilling and Completion Cost
B7: Drilling
B8: Rig and Mobilization | C8: 490 | D8: =C8/$C$20 -> 0.06533333333
B9: Location Prep/Build | C9: 465 | D9: =C9/$C$20 -> 0.062
B10: Casing | C10: 815 | D10: =C10/$C$20 -> 0.1086666667
B11: Drilling, Cementing, Directional Services, Fuel, Mud | C11: 1650 | D11: =C11/$C$20 -> 0.22
C12: =SUM(C8:C11) -> 3420 | D12: =C12/$C$20 -> 0.456
B13: Completion
B14: Perforating, Flowback, Water, Tubing, Surface Equipment | C14: 1200 | D14: =C14/$C$20 -> 0.16
B15: Stimulation (Fracking) | C15: 2220 | D15: =C15/$C$20 -> 0.296
C16: =SUM(C14:C15) -> 3420 | D16: =C16/$C$20 -> 0.456
B17: Facilities
B18: Labor, Communications, Insurance, Etc. | C18: 660 | D18: =C18/$C$20 -> 0.088
C20: =C12+C16+C18 -> 7500 | D20: =D12+D16+D18 -> 1
B24: Production Economics
B25: Discount Factor | C25: ='Production Economics'!E7 -> 0.1
B26: Payback (Yrs) | C26: ='Production Economics'!E8 -> 1.614353164
B27: Internal Rate of Return (Discounted) | C27: ='Production Economics'!E10 -> 0.3057946085
B28: Disc. Cash Flow | C28: ='Production Economics'!E11 -> 10278.41803
B29: Total EUR (BOE) | C29: =C36+C45+C52 -> 1157997.763 | D29: =D36+D45+D52 -> 1
B31: Oil/Condensate
B32: Initial Daily Oil Production (Bbl/d) | C32: ='Production Economics'!L7 -> 475
B33: Oil Price ($/Bbl) | C33: ='Production Economics'!L8 -> 70
B34: Incremental Cost ($/Bbl) | C34: ='Production Economics'!L10 -> 10
B35: Oil Production Tax | C35: ='Production Economics'!L12 -> 0.045
B36: EUR Oil Production (BOE) | C36: ='Production Economics'!L43 -> 696480.2296 | D36: =C36/$C$29 -> 0.6014521374
B38: Natural Gas
B39: Initial Daily Gas Production (MCF) | C39: ='Production Economics'!X7 -> 1100
B40: Initial Daily Gas Flow After Shrinkage | C40: ='Production Economics'!X8 -> 838.2
B41: Gas GPM Content | C41: ='Production Economics'!X9 -> 6.5
B42: Gas Price ($/Mcf) | C42: ='Production Economics'!X10 -> 3.5
B43: Oper. Cost ($/Mcf) | C43: ='Production Economics'!X11 -> 1
B44: Production Tax | C44: ='Production Economics'!X12 -> 0.075
B45: EUR Natural Gas Production (BOE) | C45: ='Production Economics'!X43/5.8 -> 211901.8584 | D45: =C45/$C$29 -> 0.1829898685
B47: Natural Gas Liquids
B48: Initial Daily NGL Production (Bbl) | C48: ='Production Economics'!AJ7 -> 170.2380952
B49: NGL Weighted Average Price ($/Bbl) | C49: ='Production Economics'!AJ8 -> 28
B50: NGL Oil Pirce Ratio | C50: ='Production Economics'!AJ9 -> 0.4
B51: Processing Cost ($/Mcf) | C51: ='Production Economics'!AJ11 -> 0.3
B52: EUR NGL Production (BOE) | C52: ='Production Economics'!AJ43 -> 249615.675 | D52: =C52/$C$29 -> 0.2155579941
B55: Decline Curve (All Commodities)
B56: Year 1 | C56: ='Production Economics'!H18 -> 0.55
B57: Year 2 | C57: ='Production Economics'!H19 -> 0.3
B58: Year 3 | C58: ='Production Economics'!H20 -> 0.2
B59: Year 4 | C59: ='Production Economics'!H21 -> 0.15
B60: Year 5 | C60: ='Production Economics'!H22 -> 0.1
B61: Year 6 | C61: ='Production Economics'!H23 -> 0.09
B62: Year 7 | C62: ='Production Economics'!H24 -> 0.07
B63: Year 8 | C63: ='Production Economics'!H25 -> 0.06
B64: Year 9 | C64: ='Production Economics'!H26 -> 0.05
B65: Year 10 | C65: ='Production Economics'!H27 -> 0.05
B66: Steady State Decline Rate | C66: ='Production Economics'!H28 -> 0.05

Sheet Production Economics
C1: The Domino Effect Multi-Commodity Production Economics Model
C3: Input Variables | D3: in blue
C4: Calculated Fields | D4: in green
B6: Well Inputs | D6: Production Economics | H6: Oil/Condensate Inputs | T6: Natural Gas Inputs | AF6: Natural Gas Liquids Inputs
B7: Basin | C7: Wolfcamp Horizontal | D7: Discount Factor | E7: 0.1 | H7: Initial Daily Oil Production (Bbl/d) | L7: 475 | T7: Initial Daily Gas Production (MCF) | X7: 1100 | Y7: Shrinkage Factor | Z7: =IF(X9<1,0,0.035*X9+0.0105) -> 0.238 | AF7: Initial Daily NGL Production (Bbl) | AJ7: =(X9*X7)/42 -> 170.2380952
B8: Drilling and Completion Cost | C8: 7500000 | D8: Payback (Yrs) | E8: =MAX(A18:A42) -> 1.614353164 | H8: Oil Price ($/Bbl) | L8: 70 | T8: Initial Daily Gas Flow After Shrinkage | X8: =X7*(1-Z7) -> 838.2 | AF8: NGL Weighted Average Price ($/Bbl) | AJ8: =AJ9*L8 -> 28
B9: Royalty Interest | C9: 0.25 | D9: IRR | E9: =IRR(B17:B42) -> 0.4363740693 | H9: Oil Price Escalation (%/yr) | L9: 0 | T9: Gas GPM Content | X9: 6.5 | AF9: NGL Oil Price Ratio | AJ9: 0.4
B10: Well Spacing | C10: 30 | D10: IRR (Discounted) | E10: =IRR(E17:E42) -> 0.3057946085 | H10: Incremental Cost ($/Bbl) | L10: 10 | T10: Gas Price ($/Mcf) | X10: 3.5 | Y10: Gas Price Esc. (%/yr) | Z10: 0 | AF10: NGL Price Escalation (%/Yr) | AJ10: 0
B11: Leasehold Costs ($/Acre) | C11: 0 | D11: Disc. Cash Flow | E11: =SUM(E17:E42) -> 10278.41803 | H11: Incremental Cost Esc. (%/yr) | L11: 0 | T11: Oper. Cost ($/Mcf) | X11: 1 | Y11: Oper. Cost Esc. (%/yr) | Z11: 0 | AF11: Processing Cost ($/Mcf) | AJ11: 0.3
H12: Oil Production Tax (%) | L12: 0.045 | T12: Production Tax (%) | X12: 0.075 | AF12: NGL O&M Exp. Escalation (%/Yr) | AJ12: 0
A14: Payback | B14: Annual | C14: Cumulative | D14: Discount | E14: Discounted | L14: Gross Oil | M14: Net Oil | N14: Oil | O14: Net | P14: Incremental | Q14: Incremental | R14: Before-Tax | X14: Gas Production | Y14: Net Gas Production - | Z14: Gas | AA14: Net | AB14: Operating | AC14: Operating | AD14: Before-Tax | AJ14: Gross NGL | AK14: Net NGL | AL14: NGL | AM14: Net | AN14: Processing | AO14: Processing | AP14: Before-Tax
A15: Period | B15: Cash Flow | C15: Cash Flow | D15: Factors | E15: Cash Flow | H15: Decline | I15: Daily Production Rate (Bbls) | L15: Production | M15: Production | N15: Price | O15: Revenue | P15: Costs | Q15: Costs & Taxes | R15: Net Cash Flow | T15: Decline | U15: Daily Production Rate (Mcf) | X15: After Shrinkage | Y15: After Shrinkage & Royalty Interest | Z15: Price | AA15: Revenue | AB15: Costs | AC15: Costs & Taxes | AD15: Net Cash Flow | AF15: Decline | AG15: Daily Production Rate (Bbls) | AJ15: Production | AK15: Production | AL15: Price | AM15: Revenue | AN15: Costs | AO15: Costs & Taxes | AP15: Net Cash Flow
A16: (Yrs.) | B16: ($) | C16: ($) | D16: @10.0% | E16: ($) | F16: Year | H16: Rate | I16: Begin | J16: End | K16: Average | L16: (Bbl/yr) | M16: (Bbl/yr) | N16: ($/Bbl) | O16: ('000) | P16: $/Bbl | T16: Rate | U16: Begin | V16: End | W16: Average | X16: (Mcf/yr) | Y16: (Mcf/yr) | Z16: ($/Mcf) | AA16: ($M) | AB16: $/Mcf | AF16: Rate | AG16: Begin | AH16: End | AI16: Average | AJ16: (BBL/yr) | AK16: (BBL/yr) | AL16: ($/BBL) | AM16: ('000) | AN16: $/Mcf
B17: =-(C8+(C10*C11))/1000 -> -7500 | C17: =B17 -> -7500 | E17: =B17 -> -7500 | F17: 0
A18: =IF(AND(A17=0,C18>0),(F18-C18/B18),A17) -> 0 | B18: =AD18+AP18+R18 -> 5526.195708 | C18: =C17+B18 -> -1973.804292 | D18: =1/((1+$E$7)^F18) -> 0.9090909091 | E18: =B18*D18 -> 5023.81428 | F18: 1 | H18: 0.55 | I18: =L7 -> 475 | J18: ='Oil Decline'!F11 -> 211.7733717 | K18: =AVERAGE('Oil Decline'!$B$43:$B$54) -> 309.4602199 | L18: =K18*365 -> 112952.9803 | M18: =L18*(1-'Production Economics'!$C$9) -> 84714.7352 | N18: =L8 -> 70 | O18: =M18*N18/1000 -> 5930.031464 | P18: =L10 -> 10 | Q18: =(L18*P18/1000)+(O18*$L$12) -> 1396.381218 | R18: =O18-Q18 -> 4533.650245 | T18: 0.55 | U18: =X7*(1-Z7) -> 838.2 | V18: ='Gas Decline'!F11 -> 373.7034072 | W18: =AVERAGE('Gas Decline'!$B$43:$B$54) -> 546.0848199 | X18: =W18*365 -> 199320.9593 | Y18: =X18*(1-$C$9) -> 149490.7195 | Z18: =X10 -> 3.5 | AA18: =Y18*Z18/1000 -> 523.2175181 | AB18: =X11 -> 1 | AC18: =(X18*AB18/1000)+(AA18*$X$12) -> 238.5622731 | AD18: =AA18-AC18 -> 284.655245 | AF18: =T18 -> 0.55 | AG18: =((($X$7/$X$8)*$U18)*$X$9)/42 -> 170.2380952 | AH18: =((($X$7/$X$8)*$V18)*$X$9)/42 -> 75.89901721 | AI18: =((($X$7/$X$8)*$W18)*$X$9)/42 -> 110.9096153 | AJ18: =AI18*365 -> 40482.0096 | AK18: =AJ18*(1-'Production Economics'!$C$9) -> 30361.5072 | AL18: =AJ8 -> 28 | AM18: =AK18*AL18/1000 -> 850.1222017 | AN18: =AJ11 -> 0.3 | AO18: =(AM18*$X$12)+((AN18*(($X$7/$X$8)*X18))/1000) -> 142.2319837 | AP18: =AM18-AO18 -> 707.8902179
A19: =IF(AND(A18=0,C19>0),(F19-C19/B19),A18) -> 1.614353164 | B19: 3212.817005 | C19: 1239.012714 | D19: 0.826446281 | E19: 2655.220666 | F19: 2 | H19: 0.3 | I19: =J18 -> 211.7733717 | J19: ='Oil Decline'!F12 -> 151.7889105 | K19: =AVERAGE('Oil Decline'!$B$55:$B$66) -> 179.9138129 | L19: =K19*365 -> 65668.54171 | M19: =L19*(1-'Production Economics'!$C$9) -> 49251.40629 | N19: =N18*(1+$L$9) -> 70 | O19: =M19*N19/1000 -> 3447.59844 | P19: =P18*(1+$L$11) -> 10 | Q19: 811.8273469 | R19: =O19-Q19 -> 2635.771093 | T19: 0.3 | U19: =V18 -> 373.7034072 | V19: ='Gas Decline'!F12 -> 267.8522996 | W19: =AVERAGE('Gas Decline'!$B$55:$B$66) -> 317.4826998 | X19: =W19*365 -> 115881.1854 | Y19: 86910.88906 | Z19: =Z18*(1+$Z$10) -> 3.5 | AA19: =Y19*Z19/1000 -> 304.1881117 | AB19: =AB18*(1+$Z$11) -> 1 | AC19: 138.6952938 | AD19: =AA19-AC19 -> 165.4928179 | AF19: =T19 -> 0.3 | AG19: =((($X$7/$X$8)*$U19)*$X$9)/42 -> 75.89901721 | AH19: =((($X$7/$X$8)*$V19)*$X$9)/42 -> 54.40069826 | AI19: =((($X$7/$X$8)*$W19)*$X$9)/42 -> 64.48061331 | AJ19: =AI19*365 -> 23535.42386 | AK19: =AJ19*(1-'Production Economics'!$C$9) -> 17651.56789 | AL19: =AL18*(1+$AJ$10) -> 28 | AM19: =AK19*AL19/1000 -> 494.2439011 | AN19: =AN18*(1+$AJ$12) -> 0.3 | AO19: 82.69080652 | AP19: =AM19-AO19 -> 411.5530945
A20: 1.614353164 | B20: 2447.694106 | C20: 3686.70682 | D20: 0.7513148009 | E20: 1838.98881 | F20: 3 | H20: 0.2 | I20: =J19 -> 151.7889105 | J20: ='Oil Decline'!F13 -> 122.6461165 | K20: =AVERAGE('Oil Decline'!$B$67:$B$78) -> 137.067891 | L20: 50029.78022 | M20: =L20*(1-'Production Economics'!$C$9) -> 37522.33517 | N20: 70 | O20: 2626.563462 | P20: 10 | Q20: 618.493158 | R20: 2008.070304 | T20: 0.2 | U20: =V19 -> 267.8522996 | V20: ='Gas Decline'!F13 -> 216.4256626 | W20: =AVERAGE('Gas Decline'!$B$67:$B$78) -> 241.874951 | X20: 88284.3571 | Y20: 66213.26783 | Z20: 3.5 | AA20: 231.7464374 | AB20: 1 | AC20: 105.6653399 | AD20: 126.0810975 | AF20: 0.2 | AG20: 54.40069826 | AH20: 43.95596823 | AI20: 49.12470883 | AJ20: 17930.51872 | AK20: =AJ20*(1-'Production Economics'!$C$9) -> 13447.88904 | AL20: 28 | AM20: 376.5408932 | AN20: 0.3 | AO20: 62.99818789 | AP20: 313.5427053
A21: 1.614353164 | B21: 2033.19461 | C21: 5719.90143 | D21: 0.6830134554 | E21: 1388.699276 | F21: 4 | H21: 0.15 | I21: 122.6461165 | J21: ='Oil Decline'!F14 -> 104.8126208 | K21: =AVERAGE('Oil Decline'!$B$79:$B$90) -> 113.8564406 | L21: 41557.60083 | M21: =L21*(1-'Production Economics'!$C$9) -> 31168.20062 | N21: 70 | O21: 2181.774044 | P21: 10 | Q21: 513.7558403 | R21: 1668.018203 | T21: 0.15 | U21: 216.4256626 | V21: ='Gas Decline'!F14 -> 184.9559071 | W21: =AVERAGE('Gas Decline'!$B$79:$B$90) -> 200.915021 | X21: 73333.98265 | Y21: 55000.48699 | Z21: 3.5 | AA21: 192.5017045 | AB21: 1 | AC21: 87.77161049 | AD21: 104.730094 | AF21: 0.15 | AG21: 43.95596823 | AH21: 37.56447308 | AI21: 40.80576291 | AJ21: 14894.10346 | AK21: =AJ21*(1-'Production Economics'!$C$9) -> 11170.5776 | AL21: 28 | AM21: 312.7761727 | AN21: 0.3 | AO21: 52.32985967 | AP21: 260.4463131
A22: 1.614353164 | B22: 1765.274403 | C22: 7485.175833 | D22: 0.6209213231 | E22: 1096.096518 | F22: 5 | H22: 0.1 | I22: 104.8126208 | J22: ='Oil Decline'!F15 -> 92.54340037 | K22: =AVERAGE('Oil Decline'!$B$91:$B$102) -> 98.85324543 | L22: 36081.43458 | M22: =L22*(1-'Production Economics'!$C$9) -> 27061.07594 | N22: 70 | O22: 1894.275315 | P22: 10 | Q22: 446.056735 | R22: 1448.21858 | T22: 0.1 | U22: 184.9559071 | V22: ='Gas Decline'!F15 -> 163.3051184 | W22: =AVERAGE('Gas Decline'!$B$91:$B$102) -> 174.4397391 | X22: 63670.50475 | Y22: 47752.87857 | Z22: 3.5 | AA22: 167.135075 | AB22: 1 | AC22: 76.20563538 | AD22: 90.9294396 | AF22: 0.1 | AG22: 37.56447308 | AH22: 33.16720627 | AI22: 35.42864341 | AJ22: 12931.45485 | AK22: =AJ22*(1-'Production Economics'!$C$9) -> 9698.591135 | AL22: 28 | AM22: 271.5605518 | AN22: 0.3 | AO22: 45.43416924 | AP22: 226.1263825
A23: 1.614353164 | B23: 1574.71111 | C23: 9059.886943 | D23: 0.5644739301 | E23: 888.8833691 | F23: 6 | H23: 0.09 | I23: 92.54340037 | J23: ='Oil Decline'!F16 -> 83.47632248 | K23: =AVERAGE('Oil Decline'!$B$103:$B$114) -> 88.18193971 | L23: 32186.408 | M23: =L23*(1-'Production Economics'!$C$9) -> 24139.806 | N23: 70 | O23: 1689.78642 | P23: 10 | Q23: 397.9044688 | R23: 1291.881951 | T23: 0.09 | U23: 163.3051184 | V23: ='Gas Decline'!F16 -> 147.3049721 | W23: =AVERAGE('Gas Decline'!$B$103:$B$114) -> 155.6087014 | X23: 56797.17599 | Y23: 42597.882 | Z23: 3.5 | AA23: 149.092587 | AB23: 1 | AC23: 67.97912002 | AD23: 81.11346697 | AF23: 0.09 | AG23: 33.16720627 | AH23: 29.91758277 | AI23: 31.60406695 | AJ23: 11535.48444 | AK23: =AJ23*(1-'Production Economics'!$C$9) -> 8651.613329 | AL23: 28 | AM23: 242.2451732 | AN23: 0.3 | AO23: 40.5294809 | AP23: 201.7156923
A24: 1.614353164 | B24: 1430.685647 | C24: 10490.57259 | D24: 0.5131581182 | E24: 734.1679542 | F24: 7 | H24: 0.07 | I24: 83.47632248 | J24: ='Oil Decline'!F17 -> 76.44342969 | K24: =AVERAGE('Oil Decline'!$B$115:$B$126) -> 80.11669363 | L24: 29242.59317 | M24: =L24*(1-'Production Economics'!$C$9) -> 21931.94488 | N24: 70 | O24: 1535.236142 | P24: 10 | Q24: 361.5115581 | R24: 1173.724584 | T24: 0.07 | U24: 147.3049721 | V24: ='Gas Decline'!F17 -> 134.8944386 | W24: =AVERAGE('Gas Decline'!$B$115:$B$126) -> 141.3764317 | X24: 51602.39759 | Y24: 38701.79819 | Z24: 3.5 | AA24: 135.4562937 | AB24: 1 | AC24: 61.76161961 | AD24: 73.69467405 | AF24: 0.07 | AG24: 29.91758277 | AH24: 27.39700822 | AI24: 28.71349851 | AJ24: 10480.42696 | AK24: =AJ24*(1-'Production Economics'!$C$9) -> 7860.320217 | AL24: 28 | AM24: 220.0889661 | AN24: 0.3 | AO24: 36.82257702 | AP24: 183.2663891
A25: 1.614353164 | B25: 1317.148528 | C25: 11807.72112 | D25: 0.4665073802 | E25: 614.4595091 | F25: 8 | H25: 0.06 | I25: 76.44342969 | J25: ='Oil Decline'!F18 -> 70.7942335 | K25: =AVERAGE('Oil Decline'!$B$127:$B$138) -> 73.75875638 | L25: 26921.94608 | M25: =L25*(1-'Production Economics'!$C$9) -> 20191.45956 | N25: 70 | O25: 1413.402169 | P25: 10 | Q25: 332.8225584 | R25: 1080.579611 | T25: 0.06 | U25: 134.8944386 | V25: ='Gas Decline'!F18 -> 124.9256367 | W25: =AVERAGE('Gas Decline'!$B$127:$B$138) -> 130.1569544 | X25: 47507.28835 | Y25: 35630.46626 | Z25: 3.5 | AA25: 124.7066319 | AB25: 1 | AC25: 56.86028574 | AD25: 67.84634617 | AF25: 0.06 | AG25: 27.39700822 | AH25: 25.37234841 | AI25: 26.434827 | AJ25: 9648.711856 | AK25: =AJ25*(1-'Production Economics'!$C$9) -> 7236.533892 | AL25: 28 | AM25: 202.622949 | AN25: 0.3 | AO25: 33.900378 | AP25: 168.722571
A26: 1.614353164 | B26: 1224.826267 | C26: 13032.54739 | D26: 0.4240976184 | E26: 519.4459029 | F26: 9 | H26: 0.05 | I26: 70.7942335 | J26: ='Oil Decline'!F19 -> 66.13478204 | K26: =AVERAGE('Oil Decline'!$B$139:$B$150) -> 68.58882446 | L26: 25034.92093 | M26: =L26*(1-'Production Economics'!$C$9) -> 18776.1907 | N26: 70 | O26: 1314.333349 | P26: 10 | Q26: 309.49421 | R26: 1004.839139 | T26: 0.05 | U26: 124.9256367 | V26: ='Gas Decline'!F19 -> 116.7033813 | W26: =AVERAGE('Gas Decline'!$B$139:$B$150) -> 121.033883 | X26: 44177.3673 | Y26: 33133.02548 | Z26: 3.5 | AA26: 115.9655892 | AB26: 1 | AC26: 52.87478649 | AD26: 63.09080268 | AF26: 0.05 | AG26: 25.37234841 | AH26: 23.70241152 | AI26: 24.58193475 | AJ26: 8972.406182 | AK26: =AJ26*(1-'Production Economics'!$C$9) -> 6729.304637 | AL26: 28 | AM26: 188.4205298 | AN26: 0.3 | AO26: 31.52420403 | AP26: 156.8963258
A27: 1.614353164 | B27: 1147.945765 | C27: 14180.49315 | D27: 0.3855432894 | E27: 442.5827863 | F27: 10 | H27: 0.05 | I27: 66.13478204 | J27: ='Oil Decline'!F20 -> 62.2111205 | K27: =AVERAGE('Oil Decline'!$B$151:$B$162) -> 64.28361159 | L27: 23463.51823 | M27: =L27*(1-'Production Economics'!$C$9) -> 17597.63867 | N27: 70 | O27: 1231.834707 | P27: 10 | Q27: 290.0677441 | R27: 941.766963 | T27: 0.05 | U27: 116.7033813 | V27: ='Gas Decline'!F20 -> 109.7795324 | W27: =AVERAGE('Gas Decline'!$B$151:$B$162) -> 113.4367323 | X27: 41404.40729 | Y27: 31053.30547 | Z27: 3.5 | AA27: 108.6865691 | AB27: 1 | AC27: 49.55589997 | AD27: 59.13066916 | AF27: 0.05 | AG27: 23.70241152 | AH27: 22.2961805 | AI27: 23.03895638 | AJ27: 8409.219078 | AK27: =AJ27*(1-'Production Economics'!$C$9) -> 6306.914309 | AL27: 28 | AM27: 176.5936006 | AN27: 0.3 | AO27: 29.5454678 | AP27: 147.0481328
A28: 1.614353164 | B28: 1082.704793 | C28: 15263.19794 | D28: 0.3504938995 | E28: 379.4814248 | F28: 11 | H28: =H27 -> 0.05 | I28: 62.2111205 | J28: ='Oil Decline'!F21 -> 58.85142209 | K28: =AVERAGE('Oil Decline'!$B$163:$B$174) -> 60.63019779 | L28: 22130.02219 | M28: =L28*(1-'Production Economics'!$C$9) -> 16597.51664 | N28: 70 | O28: 1161.826165 | P28: 10 | Q28: 273.5823994 | R28: 888.2437658 | T28: =T27 -> 0.05 | U28: 109.7795324 | V28: ='Gas Decline'!F21 -> 103.850877 | W28: =AVERAGE('Gas Decline'!$B$163:$B$174) -> 106.9897742 | X28: 39051.26757 | Y28: 29288.45067 | Z28: 3.5 | AA28: 102.5095774 | AB28: 1 | AC28: 46.73948587 | AD28: 55.77009149 | AF28: 0.05 | AG28: 22.2961805 | AH28: 21.09207288 | AI28: 21.72958168 | AJ28: 7931.297312 | AK28: =AJ28*(1-'Production Economics'!$C$9) -> 5948.472984 | AL28: 28 | AM28: 166.5572436 | AN28: 0.3 | AO28: 27.86630806 | AP28: 138.6909355
A29: 1.614353164 | B29: 1026.486117 | C29: 16289.68406 | D29: 0.3186308177 | E29: 327.0701109 | F29: 12 | H29: =H28 -> 0.05 | I29: 58.85142209 | J29: ='Oil Decline'!F22 -> 55.93484349 | K29: =AVERAGE('Oil Decline'!$B$175:$B$186) -> 57.48202129 | L29: 20980.93777 | M29: =L29*(1-'Production Economics'!$C$9) -> 15735.70333 | N29: 70 | O29: 1101.499233 | P29: 10 | Q29: 259.3768432 | R29: 842.1223898 | T29: 0.05 | U29: 103.850877 | V29: ='Gas Decline'!F22 -> 98.7041695 | W29: =AVERAGE('Gas Decline'!$B$175:$B$186) -> 101.4343792 | X29: 37023.54842 | Y29: 27767.66131 | Z29: 3.5 | AA29: 97.1868146 | AB29: 1 | AC29: 44.31255951 | AD29: 52.87425509 | AF29: 0.05 | AG29: 21.09207288 | AH29: 20.04677858 | AI29: 20.60128312 | AJ29: 7519.468339 | AK29: =AJ29*(1-'Production Economics'!$C$9) -> 5639.601254 | AL29: 28 | AM29: 157.9088351 | AN29: 0.3 | AO29: 26.4193628 | AP29: 131.4894723
A30: 1.614353164 | B30: 977.4229183 | C30: 17267.10698 | D30: 0.2896643797 | E30: 283.1246034 | F30: 13 | H30: 0.05 | I30: 55.93484349 | J30: ='Oil Decline'!F23 -> 53.37366516 | K30: =AVERAGE('Oil Decline'!$B$187:$B$198) -> 54.73454254 | L30: 19978.10803 | M30: =L30*(1-'Production Economics'!$C$9) -> 14983.58102 | N30: 70 | O30: 1048.850671 | P30: 10 | Q30: 246.9793605 | R30: 801.8713109 | T30: 0.05 | U30: 98.7041695 | V30: ='Gas Decline'!F23 -> 94.18461622 | W30: =AVERAGE('Gas Decline'!$B$187:$B$198) -> 96.58607241 | X30: 35253.91643 | Y30: 26440.43732 | Z30: 3.5 | AA30: 92.54153063 | AB30: 1 | AC30: 42.19453123 | AD30: 50.3469994 | AF30: 0.05 | AG30: 20.04677858 | AH30: 19.12885906 | AI30: 19.61659388 | AJ30: 7160.056768 | AK30: =AJ30*(1-'Production Economics'!$C$9) -> 5370.042576 | AL30: 28 | AM30: 150.3611921 | AN30: 0.3 | AO30: 25.15658407 | AP30: 125.2046081
A31: 1.614353164 | B31: 934.1440084 | C31: 18201.25099 | D31: 0.2633312543 | E31: 245.9893134 | F31: 14 | H31: 0.05 | I31: 53.37366516 | J31: ='Oil Decline'!F24 -> 51.10250995 | K31: =AVERAGE('Oil Decline'!$B$199:$B$210) -> 52.31097673 | L31: 19093.50651 | M31: =L31*(1-'Production Economics'!$C$9) -> 14320.12988 | N31: 70 | O31: 1002.409092 | P31: 10 | Q31: 236.0434742 | R31: 766.3656174 | T31: 0.05 | U31: 94.18461622 | V31: ='Gas Decline'!F24 -> 90.17684979 | W31: =AVERAGE('Gas Decline'!$B$199:$B$210) -> 92.30935592 | X31: 33692.91491 | Y31: 25269.68618 | Z31: 3.5 | AA31: 88.44390164 | AB31: 1 | AC31: 40.32620754 | AD31: 48.11769411 | AF31: 0.05 | AG31: 19.12885906 | AH31: 18.31488325 | AI31: 18.74799442 | AJ31: 6843.017964 | AK31: =AJ31*(1-'Production Economics'!$C$9) -> 5132.263473 | AL31: 28 | AM31: 143.7033773 | AN31: 0.3 | AO31: 24.04268042 | AP31: 119.6606968
A32: 1.614353164 | B32: 895.6171691 | C32: 19096.86816 | D32: 0.2393920494 | E32: 214.4036296 | F32: 15 | H32: 0.05 | I32: 51.10250995 | J32: ='Oil Decline'!F25 -> 49.07155179 | K32: =AVERAGE('Oil Decline'!$B$211:$B$222) -> 50.15352096 | L32: 18306.03515 | M32: =L32*(1-'Production Economics'!$C$9) -> 13729.52636 | N32: 70 | O32: 961.0668454 | P32: 10 | Q32: 226.3083595 | R32: 734.7584858 | T32: 0.05 | U32: 90.17684979 | V32: ='Gas Decline'!F25 -> 86.59294497 | W32: =AVERAGE('Gas Decline'!$B$211:$B$222) -> 88.50222821 | X32: 32303.3133 | Y32: 24227.48497 | Z32: 3.5 | AA32: 84.79619741 | AB32: 1 | AC32: 38.6630281 | AD32: 46.1331693 | AF32: 0.05 | AG32: 18.31488325 | AH32: 17.58699357 | AI32: 17.97476826 | AJ32: 6560.790415 | AK32: =AJ32*(1-'Production Economics'!$C$9) -> 4920.592811 | AL32: 28 | AM32: 137.7765987 | AN32: 0.3 | AO32: 23.05108478 | AP32: 114.7255139
A33: 1.614353164 | B33: 861.0489205 | C33: 19957.91708 | D33: 0.2176291358 | E33: 187.3893324 | F33: 16 | H33: 0.05 | I33: 49.07155179 | J33: ='Oil Decline'!F26 -> 47.24208188 | K33: =AVERAGE('Oil Decline'!$B$223:$B$234) -> 48.21774134 | L33: 17599.47559 | M33: =L33*(1-'Production Economics'!$C$9) -> 13199.60669 | N33: 70 | O33: 923.9724684 | P33: 10 | Q33: 217.573517 | R33: 706.3989514 | T33: 0.05 | U33: 86.59294497 | V33: ='Gas Decline'!F26 -> 83.36459456 | W33: =AVERAGE('Gas Decline'!$B$223:$B$234) -> 85.08627934 | X33: 31056.49196 | Y33: 23292.36897 | Z33: 3.5 | AA33: 81.5232914 | AB33: 1 | AC33: 37.17073882 | AD33: 44.35255258 | AF33: 0.05 | AG33: 17.58699357 | AH33: 16.93131686 | AI33: 17.28099037 | AJ33: 6307.561484 | AK33: =AJ33*(1-'Production Economics'!$C$9) -> 4730.671113 | AL33: 28 | AM33: 132.4587912 | AN33: 0.3 | AO33: 22.16137468 | AP33: 110.2974165
A34: 1.614353164 | B34: 829.8182037 | C34: 20787.73528 | D34: 0.1978446689 | E34: 164.1751078 | F34: 17 | H34: 0.05 | I34: 47.24208188 | J34: ='Oil Decline'!F27 -> 45.58352409 | K34: =AVERAGE('Oil Decline'!$B$235:$B$246) -> 46.46885935 | L34: 16961.13366 | M34: =L34*(1-'Production Economics'!$C$9) -> 12720.85025 | N34: 70 | O34: 890.4595173 | P34: 10 | Q34: 209.6820149 | R34: 680.7775024 | T34: 0.05 | U34: 83.36459456 | V34: ='Gas Decline'!F27 -> 80.43784261 | W34: =AVERAGE('Gas Decline'!$B$235:$B$246) -> 82.00013765 | X34: 29930.05024 | Y34: 22447.53768 | Z34: 3.5 | AA34: 78.56638188 | AB34: 1 | AC34: 35.82252888 | AD34: 42.743853 | AF34: 0.05 | AG34: 16.93131686 | AH34: 16.33689467 | AI34: 16.65419619 | AJ34: 6078.781608 | AK34: =AJ34*(1-'Production Economics'!$C$9) -> 4559.086206 | AL34: 28 | AM34: 127.6544138 | AN34: 0.3 | AO34: 21.35756538 | AP34: 106.2968484
A35: 1.614353164 | B35: 801.4312195 | C35: 21589.1665 | D35: 0.1798587899 | E35: 144.1444493 | F35: 18 | H35: 0.05 | I35: 45.58352409 | J35: ='Oil Decline'!F28 -> 44.07137205 | K35: =AVERAGE('Oil Decline'!$B$247:$B$258) -> 44.87922285 | L35: 16380.91634 | M35: =L35*(1-'Production Economics'!$C$9) -> 12285.68725 | N35: 70 | O35: 859.9981078 | P35: 10 | Q35: 202.5090782 | R35: 657.4890296 | T35: 0.05 | U35: 80.43784261 | V35: ='Gas Decline'!F28 -> 77.76944414 | W35: =AVERAGE('Gas Decline'!$B$247:$B$258) -> 79.19500698 | X35: 28906.17755 | Y35: 21679.63316 | Z35: 3.5 | AA35: 75.87871606 | AB35: 1 | AC35: 34.59708125 | AD35: 41.28163481 | AF35: 0.05 | AG35: 16.33689467 | AH35: 15.79494397 | AI35: 16.08447523 | AJ35: 5870.83346 | AK35: =AJ35*(1-'Production Economics'!$C$9) -> 4403.125095 | AL35: 28 | AM35: 123.2875027 | AN35: 0.3 | AO35: 20.62694756 | AP35: 102.6605551
A36: 1.614353164 | B36: 775.4898952 | C36: 22364.65639 | D36: 0.1635079908 | E36: 126.7987947 | F36: 19 | H36: 0.05 | I36: 44.07137205 | J36: ='Oil Decline'!F29 -> 42.68573 | K36: =AVERAGE('Oil Decline'!$B$259:$B$270) -> 43.42654027 | L36: 15850.6872 | M36: =L36*(1-'Production Economics'!$C$9) -> 11888.0154 | N36: 70 | O36: 832.1610779 | P36: 10 | Q36: 195.9541205 | R36: 636.2069574 | T36: 0.05 | U36: 77.76944414 | V36: ='Gas Decline'!F29 -> 75.32429025 | W36: =AVERAGE('Gas Decline'!$B$259:$B$270) -> 76.63155071 | X36: 27970.51601 | Y36: 20977.88701 | Z36: 3.5 | AA36: 73.42260452 | AB36: 1 | AC36: 33.47721135 | AD36: 39.94539317 | AF36: 0.05 | AG36: 15.79494397 | AH36: 15.29833417 | AI36: 15.56383826 | AJ36: 5680.800964 | AK36: =AJ36*(1-'Production Economics'!$C$9) -> 4260.600723 | AL36: 28 | AM36: 119.2968202 | AN36: 0.3 | AO36: 19.95927569 | AP36: 99.33754455
A37: 1.614353164 | B37: 751.6693798 | C37: 23116.32577 | D37: 0.148643628 | E37: 111.7308637 | F37: 20 | H37: 0.05 | I37: 42.68573 | J37: ='Oil Decline'!F30 -> 41.41025947 | K37: =AVERAGE('Oil Decline'!$B$271:$B$282) -> 42.09262037 | L37: 15363.80644 | M37: =L37*(1-'Production Economics'!$C$9) -> 11522.85483 | N37: 70 | O37: 806.5998379 | P37: 10 | Q37: 189.9350571 | R37: 616.6647808 | T37: 0.05 | U37: 75.32429025 | V37: ='Gas Decline'!F30 -> 73.0735494 | W37: =AVERAGE('Gas Decline'!$B$271:$B$282) -> 74.27766778 | X37: 27111.34874 | Y37: 20333.51156 | Z37: 3.5 | AA37: 71.16729044 | AB37: 1 | AC37: 32.44889552 | AD37: 38.71839492 | AF37: 0.05 | AG37: 15.29833417 | AH37: 14.84120957 | AI37: 15.08576555 | AJ37: 5506.304425 | AK37: =AJ37*(1-'Production Economics'!$C$9) -> 4129.728319 | AL37: 28 | AM37: 115.6323929 | AN37: 0.3 | AO37: 19.34618882 | AP37: 96.28620411
A38: 1.614353164 | B38: 729.7016683 | C38: 23846.02744 | D38: 0.1351305709 | E38: 98.60500305 | F38: 21 | H38: 0.05 | I38: 41.41025947 | J38: ='Oil Decline'!F31 -> 40.23140504 | K38: =AVERAGE('Oil Decline'!$B$283:$B$294) -> 40.8624552 | L38: 14914.79615 | M38: =L38*(1-'Production Economics'!$C$9) -> 11186.09711 | N38: 70 | O38: 783.0267977 | P38: 10 | Q38: 184.3841674 | R38: 598.6426303 | T38: 0.05 | U38: 73.0735494 | V38: ='Gas Decline'!F31 -> 70.99330113 | W38: =AVERAGE('Gas Decline'!$B$283:$B$294) -> 72.10687455 | X38: 26319.00921 | Y38: 19739.25691 | Z38: 3.5 | AA38: 69.08739918 | AB38: 1 | AC38: 31.50056415 | AD38: 37.58683503 | AF38: 0.05 | AG38: 14.84120957 | AH38: 14.41871195 | AI38: 14.64487828 | AJ38: 5345.380573 | AK38: =AJ38*(1-'Production Economics'!$C$9) -> 4009.03543 | AL38: 28 | AM38: 112.252992 | AN38: 0.3 | AO38: 18.78078905 | AP38: 93.47220299
A39: 1.614353164 | B39: 709.3634781 | C39: 24555.39092 | D39: 0.1228459736 | E39: 87.14244708 | F39: 22 | H39: 0.05 | I39: 40.23140504 | J39: ='Oil Decline'!F32 -> 39.13781602 | K39: =AVERAGE('Oil Decline'!$B$295:$B$306) -> 39.7235412 | L39: 14499.09254 | M39: =L39*(1-'Production Economics'!$C$9) -> 10874.3194 | N39: 70 | O39: 761.2023582 | P39: 10 | Q39: 179.2450315 | R39: 581.9573267 | T39: 0.05 | U39: 70.99330113 | V39: ='Gas Decline'!F32 -> 69.06351552 | W39: =AVERAGE('Gas Decline'!$B$295:$B$306) -> 70.09710673 | X39: 25585.44396 | Y39: 19189.08297 | Z39: 3.5 | AA39: 67.16179038 | AB39: 1 | AC39: 30.62257823 | AD39: 36.53921215 | AF39: 0.05 | AG39: 14.41871195 | AH39: 14.02677324 | AI39: 14.23669522 | AJ39: 5196.393754 | AK39: =AJ39*(1-'Production Economics'!$C$9) -> 3897.295316 | AL39: 28 | AM39: 109.1242688 | AN39: 0.3 | AO39: 18.25732959 | AP39: 90.86693924
A40: 1.614353164 | B40: 690.4671344 | C40: 25245.85806 | D40: 0.1116781578 | E40: 77.11009759 | F40: 23 | H40: 0.05 | I40: 39.13781602 | J40: ='Oil Decline'!F33 -> 38.11990801 | K40: =AVERAGE('Oil Decline'!$B$307:$B$318) -> 38.66536883 | L40: 14112.85962 | M40: =L40*(1-'Production Economics'!$C$9) -> 10584.64472 | N40: 70 | O40: 740.9251302 | P40: 10 | Q40: 174.4702271 | R40: 566.4549031 | T40: 0.05 | U40: 69.06351552 | V40: ='Gas Decline'!F33 -> 67.2672796 | W40: =AVERAGE('Gas Decline'!$B$307:$B$318) -> 68.22981873 | X40: 24903.88384 | Y40: 18677.91288 | Z40: 3.5 | AA40: 65.37269507 | AB40: 1 | AC40: 29.80683597 | AD40: 35.56585911 | AF40: 0.05 | AG40: 14.02677324 | AH40: 13.66195842 | AI40: 13.85744975 | AJ40: 5057.969158 | AK40: =AJ40*(1-'Production Economics'!$C$9) -> 3793.476869 | AL40: 28 | AM40: 106.2173523 | AN40: 0.3 | AO40: 17.7709801 | AP40: 88.44637223
A41: 1.614353164 | B41: 672.8536217 | C41: 25918.71168 | D41: 0.101525598 | E41: 68.3118663 | F41: 24 | H41: 0.05 | I41: 38.11990801 | J41: ='Oil Decline'!F34 -> 37.16952635 | K41: =AVERAGE('Oil Decline'!$B$319:$B$330) -> 37.67903341 | L41: 13752.84719 | M41: =L41*(1-'Production Economics'!$C$9) -> 10314.6354 | N41: 70 | O41: 722.0244777 | P41: 10 | Q41: 170.0195734 | R41: 552.0049043 | T41: 0.05 | U41: 67.2672796 | V41: ='Gas Decline'!F34 -> 65.59020326 | W41: =AVERAGE('Gas Decline'!$B$319:$B$330) -> 66.48929701 | X41: 24268.59341 | Y41: 18201.44506 | Z41: 3.5 | AA41: 63.7050577 | AB41: 1 | AC41: 29.04647274 | AD41: 34.65858496 | AF41: 0.05 | AG41: 13.66195842 | AH41: 13.32134487 | AI41: 13.50395046 | AJ41: 4928.941918 | AK41: =AJ41*(1-'Production Economics'!$C$9) -> 3696.706439 | AL41: 28 | AM41: 103.5077803 | AN41: 0.3 | AO41: 17.31764786 | AP41: 86.19013243
A42: 1.614353164 | B42: 656.3872183 | C42: 26575.0989 | D42: 0.09229599818 | E42: 60.5819135 | F42: 25 | H42: 0.05 | I42: 37.16952635 | J42: ='Oil Decline'!F35 -> 36.2796844 | K42: =AVERAGE('Oil Decline'!$B$331:$B$342) -> 36.7569347 | L42: 13416.28117 | M42: =L42*(1-'Production Economics'!$C$9) -> 10062.21088 | N42: 70 | O42: 704.3547613 | P42: 10 | Q42: 165.8587759 | R42: 538.4959853 | T42: 0.05 | U42: 65.59020326 | V42: ='Gas Decline'!F35 -> 64.01995761 | W42: =AVERAGE('Gas Decline'!$B$331:$B$342) -> 64.86212986 | X42: 23674.6774 | Y42: 17756.00805 | Z42: 3.5 | AA42: 62.14602818 | AB42: 1 | AC42: 28.33562951 | AD42: 33.81039866 | AF42: 0.05 | AG42: 13.32134487 | AH42: 13.00242859 | AI42: 13.17347344 | AJ42: 4808.317807 | AK42: =AJ42*(1-'Production Economics'!$C$9) -> 3606.238355 | AL42: 28 | AM42: 100.974674 | AN42: 0.3 | AO42: 16.89383968 | AP42: 84.08083427
B43: =SUM(B17:B42) -> 26575.0989 | E43: =SUM(E17:E42) -> 10278.41803 | L43: =SUM(L18:L42) -> 696480.2296 | M43: =SUM(M18:M42) -> 522360.1722 | N43: =AVERAGE(N18:N42) -> 70 | O43: =SUM(O18:O42) -> 36565.21205 | P43: =AVERAGE(P18:P42) -> 10 | Q43: =SUM(Q18:Q42) -> 8610.236838 | R43: =SUM(R18:R42) -> 27954.97521 | X43: =SUM(X18:X42) -> 1229030.779 | Y43: =SUM(Y18:Y42) -> 921773.084 | Z43: =AVERAGE(Z18:Z42) -> 3.5 | AA43: =SUM(AA18:AA42) -> 3226.205794 | AB43: =AVERAGE(AB18:AB42) -> 1 | AC43: =SUM(AC18:AC42) -> 1470.996213 | AD43: =SUM(AD17:AD42) -> 1755.209581 | AJ43: =SUM(AJ18:AJ42) -> 249615.675 | AK43: =SUM(AK18:AK42) -> 187211.7562 | AL43: =AVERAGE(AL18:AL42) -> 28 | AM43: =SUM(AM18:AM42) -> 5241.929174 | AN43: =AVERAGE(AN18:AN42) -> 0.3 | AO43: =SUM(AO18:AO42) -> 877.0150734 | AP43: =SUM(AP18:AP42) -> 4364.914101

Sheet Oil Decline
A2: Curve Fitting | D2: Instructions:
A3: Parameter | B3: Value | D3: 1.) Make sure that macros are enabled and fillout the pink cells with the appropriate values.
A4: IP = | B4: ='Production Economics'!L7 -> 475 | D4: 2a.) Press Command+Option+s and the solver will fit the smooth curve to the data you have provided
A5: D_i = | B5: 1.7009594 | D5: 2b.) If Macro in 2a does not work use the solver add in to minimize cell G35 by changing cells B5 and B6.
A6: b = | B6: 1.660676581 | D6: 3.) After a solution is reached the ladder chart below will reflect this new fitted curve.
B8: Curve Characteristics
A9: Year | B9: Annual Decline (%) | C9: Begin Production (Bbld) | D9: End Production (Bbld) | E9: Average Production (Bbld) | F9: Calculated | G9: Squared Residual
A10: 1 | B10: ='Production Economics'!H18*100 -> 55 | C10: =B4 -> 475 | D10: =C10*(1-B10/100) -> 213.75 | E10: =(C10+D10)/2 -> 344.375 | F10: =$B$4/(1+$B$5*$B$6*($A10-1))^(1/$B$6) -> 475 | G10: =(F10-C10)^2 -> 0
A11: 2 | B11: ='Production Economics'!H19*100 -> 30 | C11: =D10 -> 213.75 | D11: =C11*(1-B11/100) -> 149.625 | E11: =(C11+D11)/2 -> 181.6875 | F11: 211.7733717 | G11: =(F11-C11)^2 -> 3.907059324
A12: 3 | B12: ='Production Economics'!H20*100 -> 20 | C12: =D11 -> 149.625 | D12: =C12*(1-B12/100) -> 119.7 | E12: 134.6625 | F12: 151.7889105 | G12: 4.682508825
A13: 4 | B13: ='Production Economics'!H21*100 -> 15 | C13: 119.7 | D13: 101.745 | E13: 110.7225 | F13: 122.6461165 | G13: 8.679602552
A14: 5 | B14: ='Production Economics'!H22*100 -> 10 | C14: 101.745 | D14: 91.5705 | E14: 96.65775 | F14: 104.8126208 | G14: 9.410297164
A15: 6 | B15: ='Production Economics'!H23*100 -> 9 | C15: 91.5705 | D15: 83.329155 | E15: 87.4498275 | F15: 92.54340037 | G15: 0.9465351303
A16: 7 | B16: ='Production Economics'!H24*100 -> 7 | C16: 83.329155 | D16: 77.49611415 | E16: 80.41263457 | F16: 83.47632248 | G16: 0.02165826788
A17: 8 | B17: ='Production Economics'!H25*100 -> 6 | C17: 77.49611415 | D17: 72.8463473 | E17: 75.17123073 | F17: 76.44342969 | G17: 1.108144575
A18: 9 | B18: ='Production Economics'!H26*100 -> 5 | C18: 72.8463473 | D18: 69.20402994 | E18: 71.02518862 | F18: 70.7942335 | G18: 4.211171059
A19: 10 | B19: ='Production Economics'!H27*100 -> 5 | C19: 69.20402994 | D19: 65.74382844 | E19: 67.47392919 | F19: 66.13478204 | G19: 9.420282653
A20: 11 | B20: ='Production Economics'!H28*100 -> 5 | C20: 65.74382844 | D20: 62.45663702 | E20: 64.10023273 | F20: 62.2111205 | G20: 12.48002542
A21: 12 | B21: ='Production Economics'!H29*100 -> 5 | C21: 62.45663702 | D21: 59.33380517 | E21: 60.89522109 | F21: 58.85142209 | G21: 12.99757465
A22: 13 | B22: ='Production Economics'!H30*100 -> 5 | C22: 59.33380517 | D22: 56.36711491 | E22: 57.85046004 | F22: 55.93484349 | G22: 11.55294049
A23: 14 | B23: ='Production Economics'!H31*100 -> 5 | C23: 56.36711491 | D23: 53.54875916 | E23: 54.95793704 | F23: 53.37366516 | G23: 8.960741398
A24: 15 | B24: ='Production Economics'!H32*100 -> 5 | C24: 53.54875916 | D24: 50.8713212 | E24: 52.21004018 | F24: 51.10250995 | G24: 5.984135207
A25: 16 | B25: ='Production Economics'!H33*100 -> 5 | C25: 50.8713212 | D25: 48.32775514 | E25: 49.59953817 | F25: 49.07155179 | G25: 3.239169939
A26: 17 | B26: ='Production Economics'!H34*100 -> 5 | C26: 48.32775514 | D26: 45.91136739 | E26: 47.11956127 | F26: 47.24208188 | G26: 1.178686431
A27: 18 | B27: ='Production Economics'!H35*100 -> 5 | C27: 45.91136739 | D27: 43.61579902 | E27: 44.7635832 | F27: 45.58352409 | G27: 0.1074812263
A28: 19 | B28: ='Production Economics'!H36*100 -> 5 | C28: 43.61579902 | D28: 41.43500907 | E28: 42.52540404 | F28: 44.07137205 | G28: 0.2075467882
A29: 20 | B29: ='Production Economics'!H37*100 -> 5 | C29: =D28 -> 41.43500907 | D29: 39.36325861 | E29: 40.39913384 | F29: 42.68573 | G29: 1.564302853
A30: 21 | B30: ='Production Economics'!H38*100 -> 5 | C30: 39.36325861 | D30: =C30*(1-B30/100) -> 37.39509568 | E30: 38.37917715 | F30: 41.41025947 | G30: 4.190212502
A31: 22 | B31: ='Production Economics'!H39*100 -> 5 | C31: 37.39509568 | D31: =C31*(1-B31/100) -> 35.5253409 | E31: 36.46021829 | F31: 40.23140504 | G31: 8.044650792
A32: 23 | B32: ='Production Economics'!H40*100 -> 5 | C32: 35.5253409 | D32: =C32*(1-B32/100) -> 33.74907385 | E32: 34.63720738 | F32: 39.13781602 | G32: 13.04997647
A33: 24 | B33: ='Production Economics'!H41*100 -> 5 | C33: 33.74907385 | D33: =C33*(1-B33/100) -> 32.06162016 | E33: 32.90534701 | F33: 38.11990801 | G33: 19.10419124
A34: 25 | B34: ='Production Economics'!H42*100 -> 5 | C34: =D33 -> 32.06162016 | D34: =C34*(1-B34/100) -> 30.45853915 | E34: 31.26007966 | F34: 37.16952635 | G34: 26.09070567
A35: 26 | F35: 36.2796844 | G35: =SUM(G10:G34) -> 171.1396006
A39: It is not necessary to edit below this line.
A41: Typical Production Curve
A42: Year | B42: Monthly Production (Bbld) | C42: Monthly Production (Bbl) | D42: Cumulative Production (Bbl)
A43: 1 | B43: =$B$4/(1+$B$5*$B$6*(A43-1))^(1/$B$6) -> 475 | C43: =B43*(365/12) -> 14447.91667 | D43: =C43 -> 14447.91667
A44: =A43+1/12 -> 1.083333333 | B44: =$B$4/(1+$B$5*$B$6*(A44-1))^(1/$B$6) -> 418.2263178 | C44: =B44*(365/12) -> 12721.0505 | D44: =C44+D43 -> 27168.96717
A45: =A44+1/12 -> 1.166666667 | B45: 376.5307869 | C45: =B45*(365/12) -> 11452.81143 | D45: =C45+D44 -> 38621.7786
A46: 1.25 | B46: 344.3306267 | C46: 10473.3899 | D46: 49095.1685
A47: 1.333333333 | B47: 318.5492985 | C47: 9689.207828 | D47: 58784.37633
A48: 1.416666667 | B48: 297.3378432 | C48: 9044.026064 | D48: 67828.40239
A49: 1.5 | B49: 279.5113084 | C49: 8501.802296 | D49: 76330.20469
A50: 1.583333333 | B50: 264.2716338 | C50: 8038.262194 | D50: 84368.46688
A51: 1.666666667 | B51: 251.0596407 | C51: 7636.397405 | D51: 92004.86428
A52: 1.75 | B52: 239.4706704 | C52: 7283.899558 | D52: 99288.76384
A53: 1.833333333 | B53: 229.2039096 | C53: 6971.618918 | D53: 106260.3828
A54: 1.916666667 | B54: 220.0306028 | C54: 6692.597502 | D54: 112952.9803
A55: 2 | B55: 211.7733717 | C55: 6441.440057 | D55: 119394.4203
A56: 2.083333333 | B56: 204.2923368 | C56: 6213.891911 | D56: 125608.3122
A57: 2.166666667 | B57: 197.4755494 | C57: 6006.547959 | D57: 131614.8602
A58: 2.25 | B58: 191.2322398 | C58: 5816.647293 | D58: 137431.5075
A59: 2.333333333 | B59: 185.4879535 | C59: 5641.925253 | D59: 143073.4327
A60: 2.416666667 | B60: 180.1809822 | C60: 5480.504876 | D60: 148553.9376
A61: 2.5 | B61: 175.2597022 | C61: 5330.815943 | D61: 153884.7536
A62: 2.583333333 | B62: 170.6805603 | C62: 5191.533708 | D62: 159076.2873
A63: 2.666666667 | B63: 166.4065284 | C63: 5061.531905 | D63: 164137.8192
A64: 2.75 | B64: 162.4059048 | C64: 4939.84627 | D64: 169077.6654
A65: 2.833333333 | B65: 158.6513725 | C65: 4825.645915 | D65: 173903.3114
A66: 2.916666667 | B66: 155.1192534 | C66: 4718.210625 | D66: 178621.522
A67: 3 | B67: 151.7889105 | C67: 4616.912696 | D67: 183238.4347
A68: 3.083333333 | B68: 148.6422666 | C68: 4521.202276 | D68: 187759.6369
A69: 3.166666667 | B69: 145.6634117 | C69: 4430.595439 | D69: 192190.2324
A70: 3.25 | B70: 142.838282 | C70: 4344.664411 | D70: 196534.8968
A71: 3.333333333 | B71: 140.1543947 | C71: 4263.029504 | D71: 200797.9263
A72: 3.416666667 | B72: 137.6006275 | C72: 4185.35242 | D72: 204983.2787
A73: 3.5 | B73: 135.1670353 | C73: 4111.330657 | D73: 209094.6094
A74: 3.583333333 | B74: 132.8446949 | C74: 4040.692804 | D74: 213135.3022
A75: 3.666666667 | B75: 130.6255751 | C75: 3973.194576 | D75: 217108.4968
A76: 3.75 | B76: 128.5024254 | C76: 3908.615439 | D76: 221017.1122
A77: 3.833333333 | B77: 126.468682 | C77: 3846.755743 | D77: 224863.8679
A78: 3.916666667 | B78: 124.5183865 | C78: 3787.434255 | D78: 228651.3022
A79: 4 | B79: 122.6461165 | C79: 3730.486044 | D79: 232381.7882
A80: 4.083333333 | B80: 120.8469256 | C80: 3675.760654 | D80: 236057.5489
A81: 4.166666667 | B81: 119.116291 | C81: 3623.120519 | D81: 239680.6694
A82: 4.25 | B82: 117.4500686 | C82: 3572.439585 | D82: 243253.109
A83: 4.333333333 | B83: 115.8444528 | C83: 3523.602107 | D83: 246776.7111
A84: 4.416666667 | B84: 114.2959429 | C84: 3476.501595 | D84: 250253.2127
A85: 4.5 | B85: 112.8013115 | C85: 3431.039891 | D85: 253684.2526
A86: 4.583333333 | B86: 111.3575787 | C86: 3387.126352 | D86: 257071.3789
A87: 4.666666667 | B87: 109.9619879 | C87: 3344.677131 | D87: 260416.0561
A88: 4.75 | B88: 108.6119848 | C88: 3303.614538 | D88: 263719.6706
A89: 4.833333333 | B89: 107.3051992 | C89: 3263.866477 | D89: 266983.5371
A90: 4.916666667 | B90: 106.0394281 | C90: 3225.365938 | D90: 270208.903
A91: 5 | B91: 104.8126208 | C91: 3188.050548 | D91: 273396.9536
A92: 5.083333333 | B92: 103.622866 | C92: 3151.862173 | D92: 276548.8158
A93: 5.166666667 | B93: 102.4683797 | C93: 3116.746549 | D93: 279665.5623
A94: 5.25 | B94: 101.3474948 | C94: 3082.652968 | D94: 282748.2153
A95: 5.333333333 | B95: 100.2586513 | C95: 3049.533976 | D95: 285797.7492
A96: 5.416666667 | B96: 99.20038745 | C96: 3017.345118 | D96: 288815.0944
A97: 5.5 | B97: 98.17133258 | C97: 2986.044699 | D97: 291801.1391
A98: 5.583333333 | B98: 97.17019941 | C98: 2955.593566 | D98: 294756.7326
A99: 5.666666667 | B99: 96.19577797 | C99: 2925.954913 | D99: 297682.6875
A100: 5.75 | B100: 95.24692963 | C100: 2897.09411 | D100: 300579.7816
A101: 5.833333333 | B101: 94.32258193 | C101: 2868.978534 | D101: 303448.7602
A102: 5.916666667 | B102: 93.42172362 | C102: 2841.577427 | D102: 306290.3376
A103: 6 | B103: 92.54340037 | C103: 2814.861761 | D103: 309105.1994
A104: 6.083333333 | B104: 91.68671068 | C104: 2788.804117 | D104: 311894.0035
A105: 6.166666667 | B105: 90.85080223 | C105: 2763.378568 | D105: 314657.3821
A106: 6.25 | B106: 90.03486848 | C106: 2738.560583 | D106: 317395.9426
A107: 6.333333333 | B107: 89.23814558 | C107: 2714.326928 | D107: 320110.2696
A108: 6.416666667 | B108: =$B$4/(1+$B$5*$B$6*(A108-1))^(1/$B$6) -> 88.45990955 | C108: 2690.655582 | D108: 322800.9251
A109: =A108+1/12 -> 6.5 | B109: 87.69947362 | C109: =B109*(365/12) -> 2667.525656 | D109: =C109+D108 -> 325468.4508
A110: 6.583333333 | B110: 86.95618586 | C110: 2644.91732 | D110: 328113.3681
A111: 6.666666667 | B111: 86.22942691 | C111: 2622.811735 | D111: 330736.1799
A112: 6.75 | B112: 85.51860798 | C112: 2601.190993 | D112: 333337.3709
A113: 6.833333333 | B113: 84.82316891 | C113: 2580.038054 | D113: 335917.4089
A114: 6.916666667 | B114: 84.14257641 | C114: 2559.336699 | D114: 338476.7456
A115: 7 | B115: 83.47632248 | C115: 2539.071476 | D115: 341015.8171
A116: 7.083333333 | B116: 82.82392286 | C116: 2519.227654 | D116: 343535.0447
A117: 7.166666667 | B117: 82.18491563 | C117: 2499.791184 | D117: 346034.8359
A118: 7.25 | B118: 81.55885993 | C118: 2480.748656 | D118: 348515.5846
A119: 7.333333333 | B119: 80.94533474 | C119: 2462.087265 | D119: 350977.6718
A120: 7.416666667 | B120: 80.34393774 | C120: 2443.794773 | D120: 353421.4666
A121: 7.5 | B121: 79.75428428 | C121: 2425.85948 | D121: 355847.3261
A122: 7.583333333 | B122: 79.17600641 | C122: 2408.270195 | D122: 358255.5963
A123: 7.666666667 | B123: 78.60875193 | C123: 2391.016204 | D123: 360646.6125
A124: 7.75 | B124: 78.05218355 | C124: 2374.08725 | D124: 363020.6997
A125: 7.833333333 | B125: 77.50597813 | C125: 2357.473502 | D125: 365378.1732
A126: 7.916666667 | B126: 76.96982588 | C126: 2341.165537 | D126: 367719.3388
A127: 8 | B127: 76.44342969 | C127: 2325.15432 | D127: 370044.4931
A128: 8.083333333 | B128: 75.92650446 | C128: 2309.431177 | D128: 372353.9243
A129: 8.166666667 | B129: 75.41877651 | C129: 2293.987785 | D129: 374647.9121
A130: 8.25 | B130: 74.91998298 | C130: 2278.816149 | D130: 376926.7282
A131: 8.333333333 | B131: 74.42987129 | C131: 2263.908585 | D131: 379190.6368
A132: 8.416666667 | B132: 73.94819865 | C132: 2249.257709 | D132: 381439.8945
A133: 8.5 | B133: 73.47473156 | C133: 2234.856418 | D133: 383674.7509
A134: 8.583333333 | B134: 73.00924539 | C134: 2220.697881 | D134: 385895.4488
A135: 8.666666667 | B135: 72.5515239 | C135: 2206.775518 | D135: 388102.2243
A136: 8.75 | B136: 72.1013589 | C136: 2193.083 | D136: 390295.3073
A137: 8.833333333 | B137: 71.65854984 | C137: 2179.614224 | D137: 392474.9215
A138: 8.916666667 | B138: 71.22290347 | C138: 2166.363314 | D138: 394641.2849
A139: 9 | B139: 70.7942335 | C139: 2153.324602 | D139: 396794.6095
A140: 9.083333333 | B140: 70.37236027 | C140: 2140.492625 | D140: 398935.1021
A141: 9.166666667 | B141: 69.95711046 | C141: 2127.86211 | D141: 401062.9642
A142: 9.25 | B142: 69.54831683 | C142: 2115.42797 | D142: 403178.3922
A143: 9.333333333 | B143: 69.14581791 | C143: 2103.185295 | D143: 405281.5775
A144: 9.416666667 | B144: 68.74945777 | C144: 2091.12934 | D144: 407372.7068
A145: 9.5 | B145: 68.35908577 | C145: 2079.255526 | D145: 409451.9623
A146: 9.583333333 | B146: 67.97455637 | C146: 2067.559423 | D146: 411519.5218
A147: 9.666666667 | B147: 67.59572885 | C147: 2056.036753 | D147: 413575.5585
A148: 9.75 | B148: 67.22246715 | C148: 2044.683376 | D148: 415620.2419
A149: 9.833333333 | B149: 66.85463965 | C149: 2033.495289 | D149: 417653.7372
A150: 9.916666667 | B150: 66.49211903 | C150: 2022.468621 | D150: 419676.2058
A151: 10 | B151: 66.13478204 | C151: 2011.59962 | D151: 421687.8054
A152: 10.08333333 | B152: 65.78250935 | C152: 2000.88466 | D152: 423688.6901
A153: 10.16666667 | B153: 65.43518543 | C153: 1990.320224 | D153: 425679.0103
A154: 10.25 | B154: 65.09269834 | C154: 1979.902908 | D154: 427658.9132
A155: 10.33333333 | B155: 64.75493962 | C155: 1969.629413 | D155: 429628.5426
A156: 10.41666667 | B156: 64.42180415 | C156: 1959.496543 | D156: 431588.0392
A157: 10.5 | B157: 64.09319002 | C157: 1949.501196 | D157: 433537.5404
A158: 10.58333333 | B158: 63.76899841 | C158: 1939.640368 | D158: 435477.1807
A159: 10.66666667 | B159: 63.44913345 | C159: 1929.911142 | D159: 437407.0919
A160: 10.75 | B160: 63.13350213 | C160: 1920.31069 | D160: 439327.4026
A161: 10.83333333 | B161: 62.82201419 | C161: 1910.836265 | D161: 441238.2388
A162: 10.91666667 | B162: 62.514582 | C162: 1901.485203 | D162: 443139.724
A163: 11 | B163: 62.2111205 | C163: 1892.254915 | D163: 445031.9789
A164: 11.08333333 | B164: 61.91154704 | C164: 1883.142889 | D164: 446915.1218
A165: 11.16666667 | B165: 61.61578137 | C165: 1874.146683 | D165: 448789.2685
A166: 11.25 | B166: 61.32374549 | C166: 1865.263925 | D166: 450654.5324
A167: 11.33333333 | B167: 61.03536361 | C167: 1856.49231 | D167: 452511.0247
A168: 11.41666667 | B168: 60.75056206 | C168: 1847.829596 | D168: 454358.8543
A169: 11.5 | B169: 60.46926918 | C169: 1839.273604 | D169: 456198.1279
A170: 11.58333333 | B170: 60.19141531 | C170: 1830.822216 | D170: 458028.9502
A171: 11.66666667 | B171: 59.91693268 | C171: 1822.473369 | D171: 459851.4235
A172: 11.75 | B172: =$B$4/(1+$B$5*$B$6*(A172-1))^(1/$B$6) -> 59.64575536 | C172: 1814.225059 | D172: 461665.6486
A173: =A172+1/12 -> 11.83333333 | B173: 59.37781918 | C173: =B173*(365/12) -> 1806.075333 | D173: =C173+D172 -> 463471.7239
A174: 11.91666667 | B174: 59.11306169 | C174: 1798.022293 | D174: 465269.7462
A175: 12 | B175: 58.85142209 | C175: 1790.064089 | D175: 467059.8103
A176: 12.08333333 | B176: 58.59284119 | C176: 1782.198919 | D176: 468842.0092
A177: 12.16666667 | B177: 58.33726132 | C177: 1774.425032 | D177: 470616.4343
A178: 12.25 | B178: 58.08462633 | C178: 1766.740718 | D178: 472383.175
A179: 12.33333333 | B179: 57.8348815 | C179: 1759.144312 | D179: 474142.3193
A180: 12.41666667 | B180: 57.5879735 | C180: 1751.634194 | D180: 475893.9535
A181: 12.5 | B181: 57.34385038 | C181: 1744.208782 | D181: 477638.1623
A182: 12.58333333 | B182: 57.10246146 | C182: 1736.866536 | D182: 479375.0288
A183: 12.66666667 | B183: 56.86375737 | C183: 1729.605953 | D183: 481104.6347
A184: 12.75 | B184: 56.62768993 | C184: 1722.425569 | D184: 482827.0603
A185: 12.83333333 | B185: 56.39421217 | C185: 1715.323954 | D185: 484542.3843
A186: 12.91666667 | B186: 56.16327826 | C186: 1708.299714 | D186: 486250.684
A187: 13 | B187: 55.93484349 | C187: 1701.351489 | D187: 487952.0355
A188: 13.08333333 | B188: 55.70886422 | C188: 1694.477953 | D188: 489646.5134
A189: 13.16666667 | B189: 55.48529788 | C189: 1687.67781 | D189: 491334.1912
A190: 13.25 | B190: 55.26410289 | C190: 1680.949796 | D190: 493015.141
A191: 13.33333333 | B191: 55.04523867 | C191: 1674.292676 | D191: 494689.4337
A192: 13.41666667 | B192: 54.82866559 | C192: 1667.705245 | D192: 496357.139
A193: 13.5 | B193: 54.61434496 | C193: 1661.186326 | D193: 498018.3253
A194: 13.58333333 | B194: 54.40223897 | C194: 1654.734769 | D194: 499673.0601
A195: 13.66666667 | B195: 54.19231068 | C195: 1648.34945 | D195: 501321.4095
A196: 13.75 | B196: 53.98452402 | C196: 1642.029272 | D196: 502963.4388
A197: 13.83333333 | B197: 53.77884372 | C197: 1635.773163 | D197: 504599.2119
A198: 13.91666667 | B198: 53.57523533 | C198: 1629.580075 | D198: 506228.792
A199: 14 | B199: 53.37366516 | C199: 1623.448982 | D199: 507852.241
A200: 14.08333333 | B200: 53.17410027 | C200: 1617.378883 | D200: 509469.6199
A201: 14.16666667 | B201: 52.97650846 | C201: 1611.368799 | D201: 511080.9887
A202: 14.25 | B202: 52.78085825 | C202: 1605.417772 | D202: 512686.4064
A203: 14.33333333 | B203: 52.58711884 | C203: 1599.524865 | D203: 514285.9313
A204: 14.41666667 | B204: 52.3952601 | C204: 1593.689161 | D204: 515879.6205
A205: 14.5 | B205: 52.20525255 | C205: 1587.909765 | D205: 517467.5302
A206: 14.58333333 | B206: 52.01706737 | C206: 1582.185799 | D206: 519049.716
... 136 more rows

Sheet Gas Decline
A2: Curve Fitting | D2: Instructions:
A3: Parameter | B3: Value | D3: 1.) Make sure that macros are enabled and fillout the pink cells with the appropriate values.
A4: IP = | B4: ='Production Economics'!X8 -> 838.2 | D4: 2a.) Press Command+Option+s and the solver will fit the smooth curve to the data you have provided
A5: D_i = | B5: 1.700935409 | D5: 2b.) If Macro in 2a does not work use the solver add in to minimize cell G35 by changing cells B5 and B6.
A6: b = | B6: 1.660665366 | D6: 3.) After a solution is reached the ladder chart below will reflect this new fitted curve.
B8: Curve Characteristics
A9: Year | B9: Annual Decline (%) | C9: Begin Production (Mcfd) | D9: End Production (Mcfd) | E9: Average Production (Mcfd) | F9: Calculated | G9: Squared Residual
A10: 1 | B10: ='Production Economics'!T18*100 -> 55 | C10: =B4 -> 838.2 | D10: =C10*(1-B10/100) -> 377.19 | E10: =(C10+D10)/2 -> 607.695 | F10: =$B$4/(1+$B$5*$B$6*($A10-1))^(1/$B$6) -> 838.2 | G10: =(F10-C10)^2 -> 0
A11: 2 | B11: ='Production Economics'!T19*100 -> 30 | C11: =D10 -> 377.19 | D11: =C11*(1-B11/100) -> 264.033 | E11: =(C11+D11)/2 -> 320.6115 | F11: 373.7034072 | G11: =(F11-C11)^2 -> 12.15632938
A12: 3 | B12: ='Production Economics'!T20*100 -> 20 | C12: =D11 -> 264.033 | D12: =C12*(1-B12/100) -> 211.2264 | E12: 237.6297 | F12: 267.8522996 | G12: 14.58704909
A13: 4 | B13: ='Production Economics'!T21*100 -> 15 | C13: 211.2264 | D13: 179.54244 | E13: 195.38442 | F13: 216.4256626 | G13: 27.03233208
A14: 5 | B14: ='Production Economics'!T22*100 -> 10 | C14: 179.54244 | D14: 161.588196 | E14: 170.565318 | F14: 184.9559071 | G14: 29.30562656
A15: 6 | B15: ='Production Economics'!T23*100 -> 9 | C15: 161.588196 | D15: 147.0452584 | E15: 154.3167272 | F15: 163.3051184 | G15: 2.947822399
A16: 7 | B16: ='Production Economics'!T24*100 -> 7 | C16: 147.0452584 | D16: 136.7520903 | E16: 141.8986743 | F16: 147.3049721 | G16: 0.06745124245
A17: 8 | B17: ='Production Economics'!T25*100 -> 6 | C17: 136.7520903 | D17: 128.5469649 | E17: 132.6495276 | F17: 134.8944386 | G17: 3.450869709
A18: 9 | B18: ='Production Economics'!T26*100 -> 5 | C18: 128.5469649 | D18: 122.1196166 | E18: 125.3332907 | F18: 124.9256367 | G18: 13.11401772
A19: 10 | B19: ='Production Economics'!T27*100 -> 5 | C19: 122.1196166 | D19: 116.0136358 | E19: 119.0666262 | F19: 116.7033813 | G19: 29.33560513
A20: 11 | B20: ='Production Economics'!T28*100 -> 5 | C20: 116.0136358 | D20: 110.212954 | E20: 113.1132949 | F20: 109.7795324 | G20: 38.86404456
A21: 12 | B21: ='Production Economics'!T29*100 -> 5 | C21: 110.212954 | D21: 104.7023063 | E21: 107.4576301 | F21: 103.850877 | G21: 40.47602368
A22: 13 | B22: ='Production Economics'!T30*100 -> 5 | C22: 104.7023063 | D22: 99.46719098 | E22: 102.0847486 | F22: 98.7041695 | G22: 35.97764506
A23: 14 | B23: ='Production Economics'!T31*100 -> 5 | C23: 99.46719098 | D23: 94.49383143 | E23: 96.98051121 | F23: 94.18461622 | G23: 27.90559615
A24: 15 | B24: ='Production Economics'!T32*100 -> 5 | C24: 94.49383143 | D24: 89.76913986 | E24: 92.13148565 | F24: 90.17684979 | G24: 18.63633053
A25: 16 | B25: ='Production Economics'!T33*100 -> 5 | C25: 89.76913986 | D25: 85.28068287 | E25: 87.52491136 | F25: 86.59294497 | G25: 10.08821397
A26: 17 | B26: ='Production Economics'!T34*100 -> 5 | C26: 85.28068287 | D26: 81.01664872 | E26: 83.1486658 | F26: 83.36459456 | G26: 3.671394397
A27: 18 | B27: ='Production Economics'!T35*100 -> 5 | C27: 81.01664872 | D27: 76.96581629 | E27: 78.99123251 | F27: 80.43784261 | G27: 0.3350165198
A28: 19 | B28: ='Production Economics'!T36*100 -> 5 | C28: 76.96581629 | D28: 73.11752547 | E28: 75.04167088 | F28: 77.76944414 | G28: 0.6458177178
A29: 20 | B29: ='Production Economics'!T37*100 -> 5 | C29: =D28 -> 73.11752547 | D29: 69.4616492 | E29: 71.28958734 | F29: 75.32429025 | G29: 4.869810775
A30: 21 | B30: ='Production Economics'!T38*100 -> 5 | C30: 69.4616492 | D30: =C30*(1-B30/100) -> 65.98856674 | E30: 67.72510797 | F30: 73.0735494 | G30: 13.04582304
A31: 22 | B31: ='Production Economics'!T39*100 -> 5 | C31: 65.98856674 | D31: =C31*(1-B31/100) -> 62.6891384 | E31: 64.33885257 | F31: 70.99330113 | G31: 25.04736635
A32: 23 | B32: ='Production Economics'!T40*100 -> 5 | C32: 62.6891384 | D32: =C32*(1-B32/100) -> 59.55468148 | E32: 61.12190994 | F32: 69.06351552 | G32: 40.63268369
A33: 24 | B33: ='Production Economics'!T41*100 -> 5 | C33: 59.55468148 | D33: =C33*(1-B33/100) -> 56.57694741 | E33: 58.06581445 | F33: 67.2672796 | G33: 59.48416967
A34: 25 | B34: ='Production Economics'!T42*100 -> 5 | C34: =D33 -> 56.57694741 | D34: =C34*(1-B34/100) -> 53.74810004 | E34: 55.16252372 | F34: 65.59020326 | G34: 81.23878112
A35: 26 | F35: 64.01995761 | G35: =SUM(G10:G34) -> 532.9158205
A39: It is not necessary to edit below this line.
A41: Typical Production Curve
A42: Year | B42: Monthly Production (Mcfd) | C42: Monthly Production (Mcf) | D42: Cumulative Production (Mcf)
A43: 1 | B43: =$B$4/(1+$B$5*$B$6*(A43-1))^(1/$B$6) -> 838.2 | C43: =B43*(365/12) -> 25495.25 | D43: =C43 -> 25495.25
A44: =A43+1/12 -> 1.083333333 | B44: =$B$4/(1+$B$5*$B$6*(A44-1))^(1/$B$6) -> 738.0164994 | C44: =B44*(365/12) -> 22448.00186 | D44: =C44+D43 -> 47943.25186
A45: =A44+1/12 -> 1.166666667 | B45: 664.4397459 | C45: =B45*(365/12) -> 20210.04227 | D45: =C45+D44 -> 68153.29413
A46: 1.25 | B46: 607.6185361 | C46: 18481.73047 | D46: 86635.0246
A47: 1.333333333 | B47: 562.1240587 | C47: 17097.94012 | D47: 103732.9647
A48: 1.416666667 | B48: 524.6936508 | C48: 15959.43188 | D48: 119692.3966
A49: 1.5 | B49: 493.2363421 | C49: 15002.60541 | D49: 134695.002
A50: 1.583333333 | B50: 466.3438689 | C50: 14184.62601 | D50: 148879.628
A51: 1.666666667 | B51: 443.0294969 | C51: 13475.48053 | D51: 162355.1085
A52: 1.75 | B52: 422.5791584 | C52: 12853.4494 | D52: 175208.5579
A53: 1.833333333 | B53: 404.4620319 | C53: 12302.3868 | D53: 187510.9448
A54: 1.916666667 | B54: 388.2744502 | C54: 11810.01453 | D54: 199320.9593
A55: 2 | B55: 373.7034072 | C55: 11366.81197 | D55: 210687.7712
A56: 2.083333333 | B56: 360.5020674 | C56: 10965.27122 | D56: 221653.0425
A57: 2.166666667 | B57: 348.4728828 | C57: 10599.38352 | D57: 232252.426
A58: 2.25 | B58: 337.4556788 | C58: 10264.2769 | D58: 242516.7029
A59: 2.333333333 | B59: 327.3190703 | C59: 9955.955055 | D59: 252472.6579
A60: 2.416666667 | B60: 317.9541648 | C60: 9671.105846 | D60: 262143.7638
A61: 2.5 | B61: 309.2698654 | C61: 9406.958406 | D61: 271550.7222
A62: 2.583333333 | B62: 301.1893164 | C62: 9161.17504 | D62: 280711.8972
A63: 2.666666667 | B63: 293.6471769 | C63: 8931.768299 | D63: 289643.6655
A64: 2.75 | B64: 286.5875049 | C64: 8717.036609 | D64: 298360.7021
A65: 2.833333333 | B65: 279.9620959 | C65: 8515.513752 | D65: 306876.2159
A66: 2.916666667 | B66: 273.7291663 | C66: 8325.928809 | D66: 315202.1447
A67: 3 | B67: 267.8522996 | C67: 8147.174111 | D67: 323349.3188
A68: 3.083333333 | B68: 262.2995957 | C68: 7978.279368 | D68: 331327.5982
A69: 3.166666667 | B69: 257.0429794 | C69: 7818.390624 | D69: 339145.9888
A70: 3.25 | B70: 252.0576332 | C70: 7666.75301 | D70: 346812.7418
A71: 3.333333333 | B71: 247.3215293 | C71: 7522.696515 | D71: 354335.4383
A72: 3.416666667 | B72: 242.8150411 | C72: 7385.624165 | D72: 361721.0625
A73: 3.5 | B73: 238.5206187 | C73: 7255.002152 | D73: 368976.0646
A74: 3.583333333 | B74: 234.4225161 | C74: 7130.351533 | D74: 376106.4162
A75: 3.666666667 | B75: 230.506561 | C75: 7011.241232 | D75: 383117.6574
A76: 3.75 | B76: 226.7599591 | C76: 6897.282088 | D76: 390014.9395
A77: 3.833333333 | B77: 223.1711273 | C77: 6788.121787 | D77: 396803.0613
A78: 3.916666667 | B78: 219.7295513 | C78: 6683.440519 | D78: 403486.5018
A79: 4 | B79: 216.4256626 | C79: 6582.947239 | D79: 410069.449
A80: 4.083333333 | B80: 213.2507325 | C80: 6486.376447 | D80: 416555.8255
A81: 4.166666667 | B81: 210.1967799 | C81: 6393.485387 | D81: 422949.3109
A82: 4.25 | B82: 207.2564916 | C82: 6304.05162 | D82: 429253.3625
A83: 4.333333333 | B83: 204.4231528 | C83: 6217.870897 | D83: 435471.2334
A84: 4.416666667 | B84: 201.6905852 | C84: 6134.755301 | D84: 441605.9887
A85: 4.5 | B85: 199.0530943 | C85: 6054.531617 | D85: 447660.5203
A86: 4.583333333 | B86: 196.5054212 | C86: 5977.039894 | D86: 453637.5602
A87: 4.666666667 | B87: 194.0427015 | C87: 5902.13217 | D87: 459539.6924
A88: 4.75 | B88: 191.660428 | C88: 5829.671353 | D88: 465369.3637
A89: 4.833333333 | B89: 189.3544181 | C89: 5759.530216 | D89: 471128.8939
A90: 4.916666667 | B90: 187.1207839 | C90: 5691.590512 | D90: 476820.4845
A91: 5 | B91: 184.9559071 | C91: 5625.742176 | D91: 482446.2266
A92: 5.083333333 | B92: 182.8564148 | C92: 5561.882618 | D92: 488008.1092
A93: 5.166666667 | B93: 180.819159 | C93: 5499.916087 | D93: 493508.0253
A94: 5.25 | B94: 178.8411976 | C94: 5439.753095 | D94: 498947.7784
A95: 5.333333333 | B95: 176.9197778 | C95: 5381.309908 | D95: 504329.0883
A96: 5.416666667 | B96: 175.0523204 | C96: 5324.508078 | D96: 509653.5964
A97: 5.5 | B97: 173.2364063 | C97: 5269.274025 | D97: 514922.8704
A98: 5.583333333 | B98: 171.4697641 | C98: 5215.538659 | D98: 520138.4091
A99: 5.666666667 | B99: 169.7502586 | C99: 5163.237033 | D99: 525301.6461
A100: 5.75 | B100: 168.0758806 | C100: 5112.308034 | D100: 530413.9542
A101: 5.833333333 | B101: 166.4447374 | C101: 5062.694097 | D101: 535476.6483
A102: 5.916666667 | B102: 164.8550447 | C102: 5014.340943 | D102: 540490.9892
A103: 6 | B103: 163.3051184 | C103: 4967.19735 | D103: 545458.1866
A104: 6.083333333 | B104: 161.7933676 | C104: 4921.21493 | D104: 550379.4015
A105: 6.166666667 | B105: 160.3182882 | C105: 4876.347934 | D105: 555255.7494
A106: 6.25 | B106: 158.8784571 | C106: 4832.553071 | D106: 560088.3025
A107: 6.333333333 | B107: 157.4725264 | C107: 4789.789344 | D107: 564878.0918
A108: 6.416666667 | B108: =$B$4/(1+$B$5*$B$6*(A108-1))^(1/$B$6) -> 156.0992184 | C108: 4748.017892 | D108: 569626.1097
A109: =A108+1/12 -> 6.5 | B109: 154.7573212 | C109: =B109*(365/12) -> 4707.201853 | D109: =C109+D108 -> 574333.3116
A110: 6.583333333 | B110: 153.4456844 | C110: 4667.306235 | D110: 579000.6178
A111: 6.666666667 | B111: 152.1632152 | C111: 4628.297795 | D111: 583628.9156
A112: 6.75 | B112: 150.9088743 | C112: 4590.144928 | D112: 588219.0605
A113: 6.833333333 | B113: 149.6816735 | C113: 4552.817569 | D113: 592771.8781
A114: 6.916666667 | B114: 148.4806716 | C114: 4516.287094 | D114: 597288.1652
A115: 7 | B115: 147.3049721 | C115: 4480.526236 | D115: 601768.6914
A116: 7.083333333 | B116: 146.1537206 | C116: 4445.509002 | D116: 606214.2004
A117: 7.166666667 | B117: 145.0261019 | C117: 4411.210599 | D117: 610625.411
A118: 7.25 | B118: 143.921338 | C118: 4377.607364 | D118: 615003.0184
A119: 7.333333333 | B119: 142.838686 | C119: 4344.676699 | D119: 619347.6951
A120: 7.416666667 | B120: 141.7774359 | C120: 4312.397009 | D120: 623660.0921
A121: 7.5 | B121: 140.736909 | C121: 4280.74765 | D121: 627940.8398
A122: 7.583333333 | B122: 139.716456 | C122: 4249.70887 | D122: 632190.5486
A123: 7.666666667 | B123: 138.7154553 | C123: 4219.261767 | D123: 636409.8104
A124: 7.75 | B124: 137.7333118 | C124: 4189.388235 | D124: 640599.1986
A125: 7.833333333 | B125: 136.7694553 | C125: 4160.070931 | D125: 644759.2696
A126: 7.916666667 | B126: 135.823339 | C126: 4131.293227 | D126: 648890.5628
A127: 8 | B127: 134.8944386 | C127: 4103.039174 | D127: 652993.602
A128: 8.083333333 | B128: 133.9822511 | C128: 4075.293472 | D128: 657068.8954
A129: 8.166666667 | B129: 133.0862936 | C129: 4048.04143 | D129: 661116.9369
A130: 8.25 | B130: 132.2061021 | C130: 4021.268939 | D130: 665138.2058
A131: 8.333333333 | B131: 131.341231 | C131: 3994.962443 | D131: 669133.1682
A132: 8.416666667 | B132: 130.4912518 | C132: 3969.108908 | D132: 673102.2772
A133: 8.5 | B133: 129.6557525 | C133: 3943.695804 | D133: 677045.973
A134: 8.583333333 | B134: 128.8343366 | C134: 3918.711071 | D134: 680964.684
A135: 8.666666667 | B135: 128.0266226 | C135: 3894.143105 | D135: 684858.8271
A136: 8.75 | B136: 127.2322432 | C136: 3869.98073 | D136: 688728.8079
A137: 8.833333333 | B137: 126.4508443 | C137: 3846.213182 | D137: 692575.021
A138: 8.916666667 | B138: 125.6820851 | C138: 3822.830088 | D138: 696397.8511
A139: 9 | B139: 124.9256367 | C139: 3799.821449 | D139: 700197.6726
A140: 9.083333333 | B140: 124.1811821 | C140: 3777.177623 | D140: 703974.8502
A141: 9.166666667 | B141: 123.4484155 | C141: 3754.889306 | D141: 707729.7395
A142: 9.25 | B142: 122.7270418 | C142: 3732.947521 | D142: 711462.687
A143: 9.333333333 | B143: 122.016776 | C143: 3711.343602 | D143: 715174.0306
A144: 9.416666667 | B144: 121.3173429 | C144: 3690.06918 | D144: 718864.0998
A145: 9.5 | B145: 120.6284768 | C145: 3669.116169 | D145: 722533.216
A146: 9.583333333 | B146: 119.9499208 | C146: 3648.476756 | D146: 726181.6927
A147: 9.666666667 | B147: 119.2814265 | C147: 3628.143389 | D147: 729809.8361
A148: 9.75 | B148: 118.6227539 | C148: 3608.108766 | D148: 733417.9449
A149: 9.833333333 | B149: 117.9736708 | C149: 3588.365821 | D149: 737006.3107
A150: 9.916666667 | B150: 117.3339524 | C150: 3568.90772 | D150: 740575.2184
A151: 10 | B151: 116.7033813 | C151: 3549.727847 | D151: 744124.9463
A152: 10.08333333 | B152: 116.0817468 | C152: 3530.8198 | D152: 747655.7661
A153: 10.16666667 | B153: 115.4688452 | C153: 3512.177375 | D153: 751167.9435
A154: 10.25 | B154: 114.8644788 | C154: 3493.794565 | D154: 754661.738
A155: 10.33333333 | B155: 114.2684564 | C155: 3475.665548 | D155: 758137.4036
A156: 10.41666667 | B156: 113.6805923 | C156: 3457.784682 | D156: 761595.1883
A157: 10.5 | B157: 113.1007067 | C157: 3440.146497 | D157: 765035.3347
A158: 10.58333333 | B158: 112.5286254 | C158: 3422.745689 | D158: 768458.0804
A159: 10.66666667 | B159: 111.964179 | C159: 3405.577111 | D159: 771863.6575
A160: 10.75 | B160: 111.4072035 | C160: 3388.635773 | D160: 775252.2933
A161: 10.83333333 | B161: 110.8575396 | C161: 3371.916828 | D161: 778624.2101
A162: 10.91666667 | B162: 110.3150326 | C162: 3355.415574 | D162: 781979.6257
A163: 11 | B163: 109.7795324 | C163: 3339.127445 | D163: 785318.7532
A164: 11.08333333 | B164: 109.2508933 | C164: 3323.048005 | D164: 788641.8012
A165: 11.16666667 | B165: 108.7289736 | C165: 3307.172946 | D165: 791948.9741
A166: 11.25 | B166: 108.2136356 | C166: 3291.498082 | D166: 795240.4722
A167: 11.33333333 | B167: 107.7047456 | C167: 3276.019345 | D167: 798516.4915
A168: 11.41666667 | B168: 107.2021736 | C168: 3260.73278 | D168: 801777.2243
A169: 11.5 | B169: 106.7057932 | C169: 3245.634542 | D169: 805022.8589
A170: 11.58333333 | B170: 106.2154813 | C170: 3230.720891 | D170: 808253.5798
A171: 11.66666667 | B171: 105.7311186 | C171: 3215.98819 | D171: 811469.5679
A172: 11.75 | B172: =$B$4/(1+$B$5*$B$6*(A172-1))^(1/$B$6) -> 105.2525885 | C172: 3201.432899 | D172: 814671.0008
A173: =A172+1/12 -> 11.83333333 | B173: 104.7797778 | C173: =B173*(365/12) -> 3187.051575 | D173: =C173+D172 -> 817858.0524
A174: 11.91666667 | B174: 104.3125764 | C174: 3172.840866 | D174: 821030.8933
A175: 12 | B175: 103.850877 | C175: 3158.797509 | D175: 824189.6908
A176: 12.08333333 | B176: 103.3945751 | C176: 3144.918325 | D176: 827334.6091
A177: 12.16666667 | B177: 102.9435689 | C177: 3131.200221 | D177: 830465.8093
A178: 12.25 | B178: 102.4977594 | C178: 3117.640181 | D178: 833583.4495
A179: 12.33333333 | B179: 102.05705 | C179: 3104.23527 | D179: 836687.6848
A180: 12.41666667 | B180: 101.6213465 | C180: 3090.982624 | D180: 839778.6674
A181: 12.5 | B181: 101.1905574 | C181: 3077.879455 | D181: 842856.5469
A182: 12.58333333 | B182: 100.7645932 | C182: 3064.923044 | D182: 845921.4699
A183: 12.66666667 | B183: 100.3433667 | C183: 3052.110739 | D183: 848973.5807
A184: 12.75 | B184: 99.92679303 | C184: 3039.439955 | D184: 852013.0206
A185: 12.83333333 | B185: 99.51478917 | C185: 3026.908171 | D185: 855039.9288
A186: 12.91666667 | B186: 99.10727429 | C186: 3014.512926 | D186: 858054.4417
A187: 13 | B187: 98.7041695 | C187: 3002.251822 | D187: 861056.6935
A188: 13.08333333 | B188: 98.30539779 | C188: 2990.122516 | D188: 864046.816
A189: 13.16666667 | B189: 97.91088403 | C189: 2978.122723 | D189: 867024.9388
A190: 13.25 | B190: 97.52055486 | C190: 2966.25021 | D190: 869991.189
A191: 13.33333333 | B191: 97.13433867 | C191: 2954.502801 | D191: 872945.6918
A192: 13.41666667 | B192: 96.75216552 | C192: 2942.878368 | D192: 875888.5701
A193: 13.5 | B193: 96.37396713 | C193: 2931.374834 | D193: 878819.945
A194: 13.58333333 | B194: 95.99967678 | C194: 2919.990169 | D194: 881739.9351
A195: 13.66666667 | B195: 95.6292293 | C195: 2908.722391 | D195: 884648.6575
A196: 13.75 | B196: 95.26256103 | C196: 2897.569565 | D196: 887546.2271
A197: 13.83333333 | B197: 94.89960974 | C197: 2886.529796 | D197: 890432.7569
A198: 13.91666667 | B198: 94.54031462 | C198: 2875.601236 | D198: 893308.3581
A199: 14 | B199: 94.18461622 | C199: 2864.782077 | D199: 896173.1402
A200: 14.08333333 | B200: 93.83245642 | C200: 2854.07055 | D200: 899027.2108
A201: 14.16666667 | B201: 93.48377842 | C201: 2843.464927 | D201: 901870.6757
A202: 14.25 | B202: 93.13852663 | C202: 2832.963518 | D202: 904703.6392
A203: 14.33333333 | B203: 92.79664671 | C203: 2822.564671 | D203: 907526.2039
A204: 14.41666667 | B204: 92.4580855 | C204: 2812.266767 | D204: 910338.4706
A205: 14.5 | B205: 92.122791 | C205: 2802.068226 | D205: 913140.5389
A206: 14.58333333 | B206: 91.79071231 | C206: 2791.967499 | D206: 915932.5064
... 136 more rows
